bitfinex/quotes_ETHUSD_20250519
["timestamp","ask_amount","ask_price","bid_price","bid_amount"]
[1747668011324,4.07289407,2455.3,2455.2,0.1272232]
[1747668012281,4.86509407,2455.3,2455.2,0.1272232]
[1747668012481,4.07331975,2455.0,2454.7,0.7864]
[1747668012920,0.7922,2455.3,2454.8,0.12723173]
[1747668013108,4.07267537,2455.4,2454.9,12.07338623]
[1747668013286,3.3178,2455.6,2454.9,8.0]
[1747668013481,3.3178,2455.6,2454.8,7.26270946]
[1747668013482,4.07256576,2455.5,2455.2,8.0]
[1747668013683,6.57240725,2455.6,2455.2,8.0]
[1747668013927,6.57240725,2455.6,2455.1,11.06190166]
[1747668014216,6.572333,2455.6,2455.2,8.12723173]
[1747668014420,2.5,2455.6,2455.4,3.06190166]
[1747668014623,4.07157553,2456.1,2455.6,4.07229538]
[1747668014826,4.07157553,2456.1,2455.7,3.06190166]
[1747668014827,4.07185824,2455.9,2455.7,3.06190166]
[1747668014996,4.07185824,2455.9,2455.5,8.91483173]
[1747668015184,4.07185824,2455.9,2455.5,9.82444033]
[1747668015386,4.07177803,2456.0,2455.6,0.12723173]
[1747668015607,16.719,2456.2,2455.6,0.12723173]
[1747668015608,4.07157615,2456.1,2455.6,0.12723173]
[1747668015918,4.07126877,2456.3,2455.7,15.13395811]
[1747668016119,4.07126877,2456.3,2455.9,8.0]
[1747668016320,4.07126877,2456.3,2456.0,0.7506]
[1747668016486,17.5378,2456.6,2456.1,8.0]
[1747668016690,4.07083248,2456.5,2456.1,8.0]
[1747668016984,0.8188,2457.1,2456.1,8.0]
[1747668017187,4.0700365,2457.0,2456.3,7.13292176]
[1747668017492,0.8188,2457.1,2456.3,11.42090166]
[1747668017686,4.07085413,2456.5,2456.3,11.42090166]
[1747668017919,4.07085413,2456.5,2456.3,8.359]
[1747668018621,4.07074347,2456.6,2456.3,8.359]
[1747668018824,4.07057365,2456.7,2456.4,0.8359]
[1747668018986,4.06981755,2457.2,2456.4,0.8359]
[1747668018987,0.8025,2457.2,2456.5,0.7781]
[1747668019187,4.0703978,2456.8,2456.5,0.7781]
[1747668019810,4.0703978,2456.8,2456.5,1.08856316]
[1747668020012,4.07027531,2456.9,2456.6,8.0]
[1747668020217,0.8025,2457.2,2456.6,8.0]
[1747668020218,4.07034397,2456.8,2456.6,8.0]
[1747668020430,4.07050107,2456.7,2456.6,8.0]
[1747668020989,0.8025,2457.2,2456.6,8.83104632]
[1747668021203,4.06980568,2457.2,2456.7,3.81260166]
[1747668021604,4.06962907,2457.3,2457.0,3.06190166]
[1747668021849,30.01684691,2457.7,2457.0,3.06190166]
[1747668021850,4.06901041,2457.6,2457.0,3.06190166]
[1747668022023,4.06944048,2457.4,2457.0,5.00369183]
[1747668022342,4.06966065,2457.3,2456.8,0.7748]
[1747668022642,0.8032,2457.8,2457.2,3.06190166]
[1747668022842,4.06884485,2457.7,2457.3,0.7748]
[1747668023127,4.06917599,2457.5,2457.3,0.7748]
[1747668023302,4.06934158,2457.4,2457.3,0.7748]
[1747668023626,4.06920235,2457.5,2457.3,1.76751204]
[1747668023927,4.06934158,2457.4,2457.3,1.76751204]
[1747668024701,4.06950718,2457.3,2457.2,16.356]
[1747668025029,4.06943242,2457.4,2457.2,8.0]
[1747668025230,4.0689263,2457.7,2457.3,8.0]
[1747668025420,9.1607,2458.1,2457.4,3.06190166]
[1747668025421,4.06911106,2457.6,2457.4,3.06190166]
[1747668025726,4.06860687,2457.9,2457.5,0.8292]
[1747668025930,4.0686938,2457.8,2457.6,0.79603537]
[1747668026094,4.0686938,2457.8,2457.5,0.8292]
[1747668026095,4.06901041,2457.6,2457.5,9.1832]
[1747668026292,4.06901041,2457.6,2457.5,16.354]
[1747668027032,4.06967279,2457.2,2457.1,3.81260166]
[1747668027190,4.06940971,2457.4,2457.1,0.7507]
[1747668027512,4.06954952,2457.3,2457.1,8.7507]
[1747668027709,4.06967279,2457.2,2457.1,8.7507]
[1747668028413,4.0695701,2457.3,2457.1,8.7507]
[1747668028614,4.06967279,2457.2,2457.1,8.7507]
[1747668028933,4.06967279,2457.2,2457.1,10.76726017]
[1747668029510,4.06967279,2457.2,2457.1,10.01656017]
[1747668029725,4.07016804,2457.0,2456.8,0.802]
[1747668029921,4.06996887,2457.1,2456.8,17.155]
[1747668030227,4.0699037,2457.1,2456.8,17.155]
[1747668030542,4.06901041,2457.6,2456.9,2.02169017]
[1747668030717,4.06984566,2457.1,2456.9,2.02169017]
[1747668030896,4.07000407,2457.0,2456.9,2.02169017]
[1747668031922,4.06992175,2457.1,2456.9,2.02169017]
[1747668032318,4.07000407,2457.0,2456.9,2.02169017]
[1747668034433,4.07066677,2456.6,2456.5,0.31046316]
[1747668034758,4.07083248,2456.5,2455.9,0.88933396]
[1747668035082,0.7865,2456.6,2455.9,1.08171753]
[1747668035239,4.07166123,2456.0,2455.9,0.30481753]
[1747668035419,4.07166123,2456.0,2455.7,3.06190166]
[1747668035623,4.0715917,2456.1,2455.8,1.23913333]
[1747668035918,0.7865,2456.6,2456.1,0.7713]
[1747668035919,4.07111576,2456.4,2456.1,0.7713]
[1747668036123,4.07132969,2456.2,2456.1,0.7713]
[1747668036573,4.0711244,2456.4,2456.1,1.16733603]
[1747668036726,8.339,2456.6,2456.1,1.16733603]
[1747668036727,4.07091826,2456.5,2456.1,1.16733603]
[1747668036950,4.07069813,2456.6,2456.3,3.06190166]
[1747668037150,4.0709982,2456.4,2456.2,0.12714753]
[1747668037355,4.07116394,2456.3,2456.2,0.12714753]
[1747668037680,4.07110664,2456.4,2456.1,8.39603603]
[1747668037894,4.07119611,2456.3,2456.1,8.39603603]
[1747668038071,12.4229937,2457.1,2456.1,8.39603603]
[1747668038072,4.07035773,2456.8,2456.2,9.1162]
[1747668038385,9.1487,2457.5,2456.7,8.8211]
[1747668038562,4.06993761,2457.1,2456.7,8.8211]
[1747668038757,4.06993761,2457.1,2456.8,1.18830017]
[1747668039154,4.07009687,2457.0,2456.8,1.18830017]
[1747668039354,4.07009687,2457.0,2456.9,0.12713112]
[1747668039991,0.8107,2457.5,2456.9,8.12713112]
[1747668040167,4.06967799,2457.2,2456.9,8.12713112]
[1747668040694,4.06955753,2457.3,2457.0,0.12713112]
[1747668040987,4.06927143,2457.5,2457.2,8.0]
[1747668041187,4.06925615,2457.5,2457.2,8.8148]
[1747668041586,8.338,2457.6,2457.3,0.12713112]
[1747668041587,4.06910014,2457.6,2457.3,0.12713112]
[1747668042097,4.06910014,2457.6,2457.4,0.12713112]
[1747668042457,4.06734757,2458.7,2457.5,0.12713112]
[1747668042458,22.45735353,2458.2,2457.5,0.12713112]
[1747668042765,4.06860952,2457.9,2457.5,0.4460344]
[1747668042960,4.06860952,2457.9,2457.6,0.12713112]
[1747668043157,4.0687076,2457.8,2457.6,0.12713112]
[1747668043366,4.0687076,2457.8,2457.7,0.12713112]
[1747668043574,4.0686793,2457.8,2457.7,0.12713112]
[1747668046000,18.3817,2458.2,2457.7,0.12713112]
[1747668046159,4.06848268,2458.0,2457.7,0.12713112]
[1747668046494,4.06848268,2458.0,2457.5,15.13099602]
[1747668046495,4.06851377,2457.9,2457.8,0.12713112]
[1747668047327,4.06834996,2458.0,2457.8,0.12713112]
[1747668047483,4.06851377,2457.9,2457.8,0.12713112]
[1747668047680,4.06851377,2457.9,2457.8,1.01515423]
[1747668048102,4.06837741,2458.0,2457.8,1.01515423]
[1747668048302,4.06837741,2458.0,2457.9,0.12713112]
[1747668049389,4.82067741,2458.0,2457.9,0.12713112]
[1747668049907,4.06837741,2458.0,2457.9,0.12713112]
[1747668051043,0.8257,2458.8,2458.0,0.7627]
[1747668051193,4.06760703,2458.5,2458.2,8.0]
[1747668051393,4.06773511,2458.4,2458.2,8.0]
[1747668051621,4.06801724,2458.2,2458.1,0.88898311]
[1747668051823,4.06786403,2458.3,2458.1,0.88898311]
[1747668051997,4.06770831,2458.4,2458.2,0.12705851]
[1747668052204,4.06752775,2458.5,2458.2,1.10493267]
[1747668052404,4.06772865,2458.4,2458.3,0.12705851]
[1747668055335,4.06751549,2458.6,2458.3,0.93435851]
[1747668055689,4.06752742,2458.5,2458.3,0.93435851]
[1747668055894,4.06761346,2458.5,2458.3,9.20692602]
[1747668056495,4.06761346,2458.5,2458.4,0.12705667]
[1747668057122,4.0676863,2458.4,2458.3,9.20692602]
[1747668057336,4.0676863,2458.4,2458.3,8.12705643]
[1747668057604,4.0676863,2458.4,2458.3,0.12705787]
[1747668057808,4.0676863,2458.4,2458.0,0.8036]
[1747668057809,4.06790252,2458.3,2458.0,0.8036]
[1747668058002,4.0679019,2458.3,2458.1,1.19779356]
[1747668058227,4.06789766,2458.3,2458.2,0.12705807]
[1747668058421,4.06801724,2458.2,2458.1,1.19779356]
[1747668058707,4.06793843,2458.3,2458.1,1.19779356]
[1747668059037,4.06801724,2458.2,2458.1,1.19779356]
[1747668059344,4.06834825,2458.0,2457.9,0.11243396]
[1747668059712,4.06834825,2458.0,2457.9,0.2395017]
[1747668059942,4.06834825,2458.0,2457.9,0.12706774]
[1747668060552,4.0687802,2457.8,2457.5,0.11243396]
[1747668060709,4.06884536,2457.7,2457.6,0.12709413]
[1747668061628,4.06884485,2457.7,2457.6,0.12709413]
[1747668063044,4.89814485,2457.7,2457.6,0.12709413]
[1747668063351,4.06884485,2457.7,2457.6,0.12709413]
[1747668063713,4.06877309,2457.8,2457.6,0.12709413]
[1747668063921,4.06884485,2457.7,2457.6,0.12709413]
[1747668065857,4.06878482,2457.8,2457.6,0.12709413]
[1747668066029,4.06884485,2457.7,2457.6,0.12709413]
[1747668066958,4.87524485,2457.7,2457.6,0.12709413]
[1747668067733,0.8064,2457.7,2457.1,8.8187]
[1747668068071,0.8064,2457.7,2457.2,9.85371783]
[1747668068363,4.06933731,2457.5,2457.3,0.12710443]
[1747668068537,4.06877949,2457.8,2457.3,0.12710443]
[1747668068741,0.8237,2458.0,2457.4,0.12710443]
[1747668068955,4.06901609,2457.6,2457.4,0.12710443]
[1747668069126,4.06917599,2457.5,2457.4,0.12710443]
[1747668069757,4.06889954,2457.7,2457.4,0.12710443]
[1747668069758,4.06909447,2457.6,2457.4,0.12710443]
[1747668070128,4.06891312,2457.7,2457.5,0.12710443]
[1747668070325,4.06891312,2457.7,2457.6,0.12710443]
[1747668070766,4.06872099,2457.8,2457.6,0.12710443]
[1747668071269,0.7755,2458.5,2457.8,8.0]
[1747668071438,4.84303523,2458.5,2457.8,8.0]
[1747668071764,4.06842319,2458.0,2457.9,0.12710443]
[1747668071974,4.0676863,2458.4,2457.9,0.12710443]
[1747668072268,4.06808565,2458.2,2457.9,0.12710443]
[1747668072476,0.7755,2458.5,2457.9,0.12710443]
[1747668072636,4.8430297,2458.5,2458.0,0.12710443]
[1747668072833,4.06815578,2458.2,2458.0,0.12710443]
[1747668073037,4.8430297,2458.5,2458.1,0.12710443]
[1747668073272,4.06817508,2458.2,2458.1,0.12710443]
[1747668074641,0.7755,2458.5,2458.1,0.12710443]
[1747668074642,4.06784572,2458.4,2458.1,0.12710443]
[1747668075140,4.84302213,2458.5,2458.1,8.77768098]
[1747668075340,4.06786333,2458.3,2458.2,0.12710443]
[1747668077578,4.06759274,2458.5,2458.2,0.12710443]
[1747668077783,4.06744291,2458.6,2458.2,0.12710443]
[1747668077988,4.06744291,2458.6,2458.1,12.71863094]
[1747668077989,4.06753374,2458.5,2458.3,0.12710443]
[1747668078279,4.0676186,2458.5,2458.4,0.12710443]
[1747668079288,4.0676186,2458.5,2457.8,4.18103592]
[1747668079289,0.7833,2458.5,2457.8,3.17433562]
[1747668079441,0.7833,2458.5,2457.9,8.41810359]
[1747668079442,4.0680948,2458.2,2457.9,8.41810359]
[1747668079639,4.06786585,2458.3,2457.9,12.61365883]
[1747668080052,13.16688241,2458.5,2458.0,5.01687485]
[1747668080279,0.8298,2458.7,2458.2,8.0]
[1747668080479,8.321,2459.1,2458.2,8.0]
[1747668080480,4.06745816,2458.6,2458.2,8.0]
[1747668080784,4.06752539,2458.5,2458.3,0.12706299]
[1747668080960,4.06752539,2458.5,2458.3,1.42099416]
[1747668081155,4.06752539,2458.5,2458.4,0.12706299]
[1747668082989,4.88712539,2458.5,2458.4,0.12706299]
[1747668083345,4.06827214,2458.1,2457.9,0.11243396]
[1747668083546,9.1336,2458.5,2457.9,1.84997618]
[1747668083792,4.06773304,2458.4,2457.9,1.73754222]
[1747668084007,4.06773304,2458.4,2458.0,0.12706296]
[1747668084181,4.06818274,2458.1,2458.0,0.12706296]
[1747668088426,4.84738274,2458.1,2458.0,0.12706296]
[1747668089185,5.39738274,2458.1,2458.0,0.12706296]
[1747668089504,4.06917599,2457.5,2457.4,0.11243396]
[1747668089885,9.0707,2458.0,2457.4,1.05034075]
[1747668090099,4.06883155,2457.8,2457.5,0.90503408]
[1747668090305,4.068593,2457.9,2457.5,12.09404253]
[1747668090607,4.068593,2457.9,2457.6,0.12710679]
[1747668090990,4.068593,2457.9,2457.7,0.12710679]
[1747668091404,4.06857454,2457.9,2457.7,0.12710679]
[1747668091604,4.06857454,2457.9,2457.8,0.12710679]
[1747668092029,12.37935122,2458.0,2457.8,0.12710679]
[1747668092030,12.3794126,2458.0,2457.8,0.12710679]
[1747668092226,4.06851377,2457.9,2457.8,0.12710679]
[1747668092436,9.0807,2458.2,2457.8,0.12710679]
[1747668092616,0.20186643,2461.3,2458.1,3.06190166]
[1747668092617,4.06785946,2458.3,2458.1,3.06190166]
[1747668092815,4.06780195,2458.4,2458.2,0.43329696]
[1747668093042,4.06785176,2458.3,2458.2,0.43329696]
[1747668093259,4.06785176,2458.3,2458.2,0.12710679]
[1747668094062,12.37785176,2458.3,2458.2,0.12710679]
[1747668096670,4.06884485,2457.7,2457.5,0.11243396]
[1747668096849,4.06901041,2457.6,2457.5,0.11243396]
[1747668097363,4.06901041,2457.6,2457.5,0.23953191]
[1747668098663,4.06854212,2457.9,2457.5,0.23953191]
[1747668098839,12.37665498,2457.9,2457.5,3.94179961]
[1747668099030,12.37665498,2457.9,2457.5,13.54290665]
[1747668099362,4.06871654,2457.8,2457.6,0.12709795]
[1747668099578,4.06884485,2457.7,2457.6,0.12709795]
[1747668099962,4.06875377,2457.8,2457.6,0.12709795]
[1747668100145,4.06884485,2457.7,2457.6,0.12709795]
[1747668100447,4.06884485,2457.7,2457.5,0.7528]
[1747668100646,4.06875634,2457.8,2457.5,12.68998166]
[1747668100952,16.629,2458.1,2457.6,0.12709136]
[1747668100953,4.06884485,2457.7,2457.6,0.12709136]
[1747668101157,4.06875106,2457.8,2457.6,0.12709136]
[1747668101359,4.06859684,2457.9,2457.6,0.12709136]
[1747668101681,4.06869953,2457.8,2457.6,8.12709136]
[1747668101871,4.06869953,2457.8,2457.7,0.12709136]
[1747668102560,4.82209953,2457.8,2457.7,0.12709136]
[1747668103685,2.5,2458.2,2457.7,0.12709136]
[1747668103686,7.3330228,2458.2,2457.7,0.12709136]
[1747668103979,4.06851714,2457.9,2457.8,0.12709136]
[1747668104160,3.2649,2458.2,2457.8,0.12709136]
[1747668104361,4.06851377,2457.9,2457.8,0.12709136]
[1747668104545,4.06851377,2457.9,2457.7,2.28810933]
[1747668104746,4.06851377,2457.9,2457.8,0.12708362]
[1747668105169,4.06842058,2458.0,2457.8,0.12708362]
[1747668105380,4.06828472,2458.1,2457.9,0.12708362]
[1747668105381,4.06827572,2458.1,2457.9,0.12708362]
[1747668105583,4.06808734,2458.2,2457.9,8.12708362]
[1747668105781,4.06797802,2458.3,2457.9,8.12708362]
[1747668106087,4.06797802,2458.3,2458.0,0.12708362]
[1747668106286,4.06797802,2458.3,2458.1,0.12708362]
[1747668106784,4.06797802,2458.3,2458.2,0.12708362]
[1747668110598,4.06763006,2458.5,2458.2,8.12708362]
[1747668111104,4.0673554,2458.6,2458.3,0.12708362]
[1747668111267,4.0673554,2458.6,2458.3,1.73454074]
[1747668111467,8.304,2458.8,2458.3,1.73454074]
[1747668111679,4.06747352,2458.6,2458.4,0.12708362]
[1747668112096,9.1359,2459.2,2458.6,8.0]
[1747668112301,9.1359,2459.2,2458.5,8.8282]
[1747668112497,4.06677851,2459.0,2458.8,8.0]
[1747668113209,8.308,2459.4,2458.9,0.12708362]
[1747668113420,4.06649102,2459.2,2458.9,0.12708362]
[1747668113726,4.06626176,2459.3,2459.0,3.18898528]
[1747668113872,4.06636304,2459.2,2459.1,8.0]
[1747668114071,4.06636304,2459.2,2459.1,8.12708362]
[1747668114274,4.06636304,2459.2,2459.1,0.12708362]
[1747668116612,4.82956304,2459.2,2459.1,0.12708362]
[1747668116773,4.06696592,2458.9,2458.6,8.8323]
[1747668116974,4.06696592,2458.9,2458.6,12.7502067]
[1747668117189,4.06696592,2458.9,2458.7,0.12702633]
[1747668117440,4.06675728,2459.0,2458.8,0.12702633]
[1747668117592,4.06683993,2459.0,2458.8,0.12702633]
[1747668118027,4.06685916,2458.9,2458.8,0.12702633]
[1747668118188,4.06683993,2459.0,2458.5,17.97216063]
[1747668118533,4.0673554,2458.6,2458.5,3.47216063]
[1747668118703,4.0673554,2458.6,2458.5,11.59919994]
[1747668118883,4.0673554,2458.6,2458.5,8.53729828]
[1747668119424,4.0665284,2459.1,2458.6,8.0]
[1747668119627,0.7632,2459.2,2458.5,0.23947327]
[1747668119628,4.0673207,2458.7,2458.5,0.23947327]
[1747668119825,4.0673207,2458.7,2458.5,0.11243396]
[1747668120124,4.0673207,2458.7,2458.4,0.12704267]
[1747668120125,4.0674762,2458.6,2458.4,0.12704267]
[1747668120288,4.0673795,2458.6,2458.4,0.12704267]
[1747668120491,8.298,2458.9,2458.5,0.12704267]
[1747668120809,4.06801724,2458.2,2458.1,0.12704267]
[1747668121011,4.06775755,2458.4,2458.1,0.12704267]
[1747668121190,4.06785187,2458.3,2458.1,0.12704267]
[1747668121388,4.06778011,2458.4,2458.2,3.06190166]
[1747668121722,4.06778011,2458.4,2458.3,8.12704267]
[1747668122713,4.06778011,2458.4,2458.3,0.12704267]
[1747668123318,4.06801724,2458.2,2458.1,0.12704267]
[1747668123823,4.0686793,2457.8,2457.7,0.12704267]
[1747668124152,13.1213793,2457.8,2457.7,0.12704267]
[1747668124527,4.06884485,2457.7,2457.6,0.11243396]
[1747668124727,5.37554485,2457.7,2457.6,0.11243396]
[1747668124927,8.43744651,2457.7,2457.6,0.11243396]
[1747668125127,13.37587599,2457.5,2457.4,0.14928828]
[1747668126458,4.07128558,2456.3,2456.0,3.88590166]
[1747668126642,12.36728558,2456.3,2456.0,5.07449183]
[1747668126963,4.07132969,2456.2,2456.1,0.1271658]
[1747668127321,8.296,2456.3,2456.1,0.1271658]
[1747668127854,4.07106358,2456.4,2456.0,5.07449183]
[1747668128059,8.297,2456.4,2456.3,3.06190166]
[1747668128235,8.297,2456.4,2456.3,3.36916638]
[1747668128425,8.297,2456.4,2456.3,11.36916638]
[1747668128948,4.0709982,2456.4,2456.3,11.06190166]
[1747668129145,8.297,2456.7,2456.3,11.06190166]
[1747668129330,8.297,2456.7,2456.0,3.88590166]
[1747668129655,4.07130227,2456.3,2456.0,3.88590166]
[1747668129858,4.07144419,2456.2,2456.0,3.88590166]
[1747668130155,4.07121231,2456.3,2456.0,3.88590166]
[1747668130372,4.07093444,2456.5,2456.0,3.88590166]
[1747668130571,4.07083248,2456.5,2456.4,3.06190166]
[1747668131158,4.07098053,2456.5,2456.1,3.06190166]
[1747668131365,4.07111711,2456.4,2456.1,3.06190166]
[1747668131663,4.07099942,2456.4,2456.1,3.06190166]
[1747668131872,4.07074043,2456.6,2456.1,11.88828042]
[1747668132069,4.07083248,2456.5,2456.4,8.0]
[1747668132278,4.07132969,2456.2,2456.1,3.06190166]
[1747668132479,4.07123238,2456.3,2456.2,8.0]
[1747668132678,4.07096322,2456.5,2456.2,8.0]
[1747668132886,4.07104718,2456.4,2456.1,3.06190166]
[1747668133178,4.07091338,2456.5,2456.1,11.06190166]
[1747668133543,4.07091338,2456.5,2456.2,8.0]
[1747668133972,2.5,2456.8,2456.4,3.06190166]
[1747668134179,4.07079568,2456.6,2456.4,3.06190166]
[1747668134379,4.07067287,2456.6,2456.4,3.06190166]
[1747668134561,6.5703917,2456.8,2456.4,3.06190166]
[1747668134761,4.07054507,2456.7,2456.4,3.06190166]
[1747668134963,0.99,2457.0,2456.5,8.7942]
[1747668135244,0.99,2457.0,2456.8,3.06190166]
[1747668135668,5.060081,2457.0,2456.7,8.0]
[1747668135869,5.060081,2457.0,2456.6,8.0]
[1747668135870,4.07049727,2456.8,2456.6,8.0]
[1747668136086,4.07090891,2456.5,2456.2,0.8205]
[1747668136383,4.07106957,2456.4,2456.2,10.52264682]
[1747668136578,0.99,2457.0,2456.4,4.07086861]
[1747668136784,4.07050107,2456.7,2456.6,3.06190166]
[1747668136979,4.0706953,2456.6,2456.3,3.06190166]
[1747668137210,4.07093058,2456.5,2456.3,3.06190166]
[1747668137415,4.07077923,2456.6,2456.3,3.06190166]
[1747668137614,4.07021338,2456.9,2456.3,8.7583839]
[1747668137923,0.99,2457.0,2456.8,8.7571]
[1747668138076,5.06009195,2457.0,2456.8,8.7571]
[1747668138281,0.99,2457.0,2456.8,8.7571]
[1747668139018,0.99,2457.0,2456.8,12.82741802]
[1747668139311,0.99,2457.0,2456.8,8.7571]
[1747668139518,5.06008925,2457.0,2456.8,8.7571]
[1747668139888,0.99,2457.0,2456.8,8.7571]
[1747668140404,0.99,2457.0,2456.8,9.55513433]
[1747668141093,0.99,2457.0,2456.3,0.8116]
[1747668141094,4.07093428,2456.5,2456.3,0.8116]
[1747668141299,4.07090101,2456.5,2456.3,0.8116]
[1747668141621,12.36626114,2456.9,2456.3,3.87350166]
[1747668141622,4.070753,2456.6,2456.3,3.87350166]
[1747668141817,4.07083713,2456.5,2456.3,3.87350166]
[1747668142733,4.07083713,2456.5,2456.0,12.37770189]
[1747668142734,12.36617055,2456.9,2456.0,12.42663718]
[1747668142882,12.36617055,2456.9,2456.1,8.0]
[1747668142883,4.07132173,2456.3,2456.1,8.0]
[1747668143192,4.07132173,2456.3,2456.0,12.42663718]
[1747668143719,4.07108996,2456.4,2456.1,8.0]
[1747668144308,4.07108151,2456.4,2456.1,8.0]
[1747668144507,4.07110113,2456.4,2456.1,8.0]
[1747668144677,4.07096424,2456.5,2456.1,8.0]
[1747668145217,4.07100203,2456.4,2456.1,8.0]
[1747668145516,4.07091626,2456.5,2456.1,8.0]
[1747668145715,4.07083248,2456.5,2456.1,8.0]
[1747668145917,0.7527,2456.8,2456.3,3.06190166]
[1747668146226,4.0709982,2456.4,2456.3,3.06190166]
[1747668146921,4.07132969,2456.2,2456.0,9.36473552]
[1747668147122,12.36567693,2456.6,2455.6,8.3]
[1747668147123,4.07197856,2455.9,2455.6,8.3]
[1747668147320,4.07197856,2455.9,2455.1,0.67052071]
[1747668147321,0.8056,2455.9,2455.3,0.7723]
[1747668147622,4.07217493,2455.7,2455.3,0.7723]
[1747668147918,4.8775433,2455.9,2455.1,4.22237264]
[1747668147919,0.8056,2455.9,2455.1,0.14928828]
[1747668148125,4.07271092,2455.4,2455.1,0.14928828]
[1747668148287,0.8056,2455.9,2455.3,3.06190166]
[1747668148628,12.36689932,2455.9,2455.6,3.06190166]
[1747668148932,4.0716688,2456.0,2455.6,3.06190166]
[1747668149216,4.0716688,2456.0,2455.7,1.7501437]
[1747668149529,4.07199283,2455.8,2455.6,3.06190166]
[1747668149758,4.07215865,2455.7,2455.6,11.06190166]
[1747668149940,4.07215865,2455.7,2455.6,11.18909744]
[1747668150218,4.07215865,2455.7,2455.6,3.18909744]
[1747668150421,4.07207473,2455.8,2455.6,3.18909744]
[1747668150589,4.07188546,2455.9,2455.6,3.18909744]
[1747668150788,4.07171377,2456.0,2455.6,3.18909744]
[1747668151084,4.07212325,2455.8,2455.7,0.12719578]
[1747668151289,4.07199283,2455.8,2455.7,0.12719578]
[1747668153554,4.07259645,2455.5,2455.3,3.06190166]
[1747668153717,4.07240809,2455.6,2455.4,0.12720596]
[1747668154103,4.07249032,2455.5,2455.4,0.12720596]
[1747668156825,4.87059032,2455.5,2455.4,0.12720596]
[1747668157723,4.07298416,2455.3,2455.1,3.06190166]
[1747668157910,4.07298794,2455.2,2455.1,3.06190166]
[1747668158111,4.07298794,2455.2,2455.1,3.18912026]
[1747668158462,4.83398794,2455.2,2455.1,0.1272186]
[1747668158829,0.761,2455.2,2454.6,0.14928828]
[1747668159030,4.07374989,2454.8,2454.6,3.21118994]
[1747668159350,4.07374989,2454.8,2454.7,0.12724232]
[1747668159927,9.055,2455.2,2454.7,0.12724232]
[1747668160129,16.589,2455.2,2454.9,3.06190166]
[1747668160545,20.6619907,2455.2,2454.9,3.06190166]
[1747668160757,4.07331975,2455.0,2454.8,0.8092]
[1747668161062,4.07306282,2455.2,2454.9,0.12722689]
[1747668161231,8.295,2455.3,2454.9,0.12722689]
[1747668161417,8.295,2455.4,2454.9,0.12722689]
[1747668161618,4.07323327,2455.1,2455.0,0.12722689]
[1747668161878,4.83643327,2455.1,2455.0,0.12722689]
[1747668162168,0.7632,2455.1,2454.5,3.06190166]
[1747668162410,0.7632,2455.1,2454.5,11.06190166]
[1747668162516,4.07333569,2455.0,2454.6,8.0]
[1747668162723,0.7632,2455.1,2454.7,0.12723438]
[1747668163055,4.07339646,2455.0,2454.7,0.12723438]
[1747668163354,4.07339646,2455.0,2454.8,0.12723438]
[1747668163554,4.07339646,2455.0,2454.7,0.12723438]
[1747668164052,4.0731712,2455.1,2454.8,3.06190166]
[1747668164463,4.07331975,2455.0,2454.9,0.12723438]
[1747668164863,4.07311208,2455.2,2454.9,0.12723438]
[1747668165050,4.0732401,2455.1,2454.9,0.12723438]
[1747668165359,4.0732401,2455.1,2454.6,7.13576311]
[1747668165556,4.0732401,2455.1,2454.6,9.29703574]
[1747668166042,4.0732401,2455.1,2454.7,0.12723263]
[1747668166549,4.0732401,2455.1,2454.8,0.12723263]
[1747668166936,4.07346779,2455.0,2454.8,0.12723263]
[1747668167246,4.07346779,2455.0,2454.9,0.12723263]
[1747668168061,4.07359042,2454.9,2454.7,0.12723263]
[1747668168437,4.07322286,2455.1,2454.8,0.8274]
[1747668168657,4.07329809,2455.1,2454.8,0.8274]
[1747668168956,8.294,2455.3,2454.7,0.88758429]
[1747668168957,4.07348568,2454.9,2454.7,0.88758429]
[1747668169261,4.07365162,2454.8,2454.6,11.06190166]
[1747668169434,4.07365162,2454.8,2454.7,0.12723658]
[1747668169958,4.07357184,2454.9,2454.7,0.12723658]
[1747668170116,4.07357184,2454.9,2454.8,0.12723658]
[1747668170548,4.07365162,2454.8,2454.7,0.12723658]
[1747668173325,4.07381757,2454.7,2454.2,7.74275275]
[1747668173540,4.07348568,2454.9,2454.2,7.74275275]
[1747668173762,4.07461305,2454.3,2454.1,0.7626]
[1747668173934,4.07476065,2454.2,2453.9,3.84810166]
[1747668174149,4.07481357,2454.1,2453.9,3.84810166]
[1747668174358,4.07481357,2454.1,2454.0,8.14928828]
[1747668174558,4.07481357,2454.1,2454.0,0.14928828]
[1747668174738,4.07458624,2454.3,2454.0,3.21118994]
[1747668174943,4.07438272,2454.4,2454.0,3.21118994]
[1747668175145,4.07414952,2454.5,2454.3,3.06190166]
[1747668175345,12.36705421,2454.6,2454.3,3.06190166]
[1747668175528,4.07417515,2454.5,2454.3,3.06190166]
[1747668175732,8.293,2454.6,2454.3,3.06190166]
[1747668175733,4.07404692,2454.6,2454.3,3.06190166]
[1747668175961,9.99,2454.8,2454.3,3.06190166]
[1747668176268,0.7924,2454.9,2454.3,3.06190166]
[1747668176269,4.07410447,2454.6,2454.3,3.06190166]
[1747668176466,4.07417699,2454.5,2454.3,3.06190166]
[1747668176962,4.07405492,2454.6,2454.3,3.06190166]
[1747668177162,4.07391647,2454.7,2454.3,3.85815522]
[1747668177364,0.7924,2454.9,2454.6,3.06190166]
[1747668177365,4.07373005,2454.8,2454.6,3.06190166]
[1747668177667,12.36558424,2454.9,2454.6,3.06190166]
[1747668177865,4.07367455,2454.8,2454.6,3.06190166]
[1747668178166,12.36557781,2454.9,2454.6,3.06190166]
[1747668178661,8.292,2455.1,2454.6,7.93149697]
[1747668178828,4.07324109,2455.1,2454.9,3.06190166]
[1747668179033,4.07331975,2455.0,2454.9,3.06190166]
[1747668179452,4.07331975,2455.0,2454.6,0.79571072]
[1747668179656,4.07371429,2454.8,2454.5,11.06190166]
[1747668180065,4.07357576,2454.9,2454.5,15.1360487]
[1747668180270,0.8109,2455.5,2454.9,0.7706]
[1747668180472,4.07305569,2455.2,2454.9,0.7706]
[1747668180677,4.07318806,2455.1,2454.9,0.7706]
[1747668181036,25.881,2455.8,2454.9,9.56122524]
[1747668181236,0.7558,2456.1,2455.6,3.06190166]
[1747668181569,0.7678,2456.4,2455.6,3.06190166]
[1747668181766,4.07156586,2456.1,2455.6,7.13416269]
[1747668182066,0.7678,2456.4,2455.9,3.86950166]
[1747668182269,8.298,2456.6,2456.2,3.06190166]
[1747668182483,4.07066677,2456.6,2456.2,3.06190166]
[1747668182683,4.07083248,2456.5,2456.2,3.06190166]
[1747668182892,4.07103409,2456.4,2456.2,3.06190166]
[1747668183076,8.291,2456.7,2456.2,3.06190166]
[1747668183277,4.07066677,2456.6,2456.2,3.06190166]